[Event "Titled Tuesday Blitz March 07 Late 2023"]
[White "Cavanah, Troy"]
[Black "Barash, Anton"]
[WhiteFideId "30949670"]
[BlackFideId "30935229"]
[WhiteElo "1878"]
[BlackElo "2310"]
[Result "0-1"]
[Round "03"]
[TimeControl "180+2"]
[Date "2023.03.07"]
[WhiteClock "0:00:02"]
[BlackClock "0:00:15"]

1. e4 {[%clk 0:03:00]}  e6 {[%clk 0:02:56]} 2. d4 {[%clk 0:02:59]}  d5 {[%clk 0:02:56]} 3. Nc3 {[%clk 0:02:59]}  Be7 {[%clk 0:02:56]} 4. Nf3 {[%clk 0:02:57]}  Nf6 {[%clk 0:02:52]} 5. e5 {[%clk 0:02:54]}  Nfd7 {[%clk 0:02:52]} 6. Ne2 {[%clk 0:02:54]}  c5 {[%clk 0:02:52]} 7. c3 {[%clk 0:02:54]}  Qa5 {[%clk 0:02:50]} 8. a3 {[%clk 0:02:52]}  cxd4 {[%clk 0:02:40]} 9. b4 {[%clk 0:02:52]}  Qc7 {[%clk 0:02:34]} 10. cxd4 {[%clk 0:02:52]}  Nb6 {[%clk 0:02:30]} 11. Ra2 {[%clk 0:02:43]}  Nc4 {[%clk 0:02:23]} 12. Rc2 {[%clk 0:02:43]}  Bd7 {[%clk 0:02:23]} 13. Nc3 {[%clk 0:02:42]}  b5 {[%clk 0:02:20]} 14. Bd3 {[%clk 0:02:39]}  a5 {[%clk 0:02:18]} 15. bxa5 {[%clk 0:02:37]}  Rxa5 {[%clk 0:02:15]} 16. O-O {[%clk 0:02:32]}  Qa7 {[%clk 0:02:10]} 17. Bxc4 {[%clk 0:02:16]}  bxc4 {[%clk 0:02:11]} 18. Ng5 {[%clk 0:01:18]}  Bxg5 {[%clk 0:02:10]} 19. Bxg5 {[%clk 0:01:18]}  Rxa3 {[%clk 0:02:11]} 20. Qg4 {[%clk 0:01:16]}  Ba4 {[%clk 0:01:29]} 21. Rcc1 {[%clk 0:01:02]}  Nc6 {[%clk 0:01:19]} 22. Be3 {[%clk 0:00:55]}  Kf8 {[%clk 0:01:08]} 23. f4 {[%clk 0:00:30]}  Ne7 {[%clk 0:00:52]} 24. f5 {[%clk 0:00:22]}  Nxf5 {[%clk 0:00:46]} 25. Rxf5 {[%clk 0:00:10]}  exf5 {[%clk 0:00:44]} 26. Qxf5 {[%clk 0:00:10]}  Qd7 {[%clk 0:00:40]} 27. Qg5 {[%clk 0:00:08]}  h6 {[%clk 0:00:33]} 28. Qf4 {[%clk 0:00:07]}  Kg8 {[%clk 0:00:24]} 29. Rf1 {[%clk 0:00:06]}  Rxc3 {[%clk 0:00:21]} 30. Bd2 {[%clk 0:00:03]}  Rd3 {[%clk 0:00:18]} 31. Bb4 {[%clk 0:00:02]}  Kh7 {[%clk 0:00:15]} 0-1


[Site "https://www.chess.com"]

[Event "Titled Tuesday Blitz March 07 Late 2023"]
[White "Pesotskiy, Mikhail"]
[Black "Desideri, Ricardo Maruchi"]
[WhiteFideId "34164453"]
[BlackFideId "2110440"]
[WhiteElo "2131"]
[BlackElo "1945"]
[Result "1-0"]
[Round "03"]
[TimeControl "180+2"]
[Date "2023.03.07"]
[WhiteClock "0:01:39"]
[BlackClock "0:00:29"]

1. d4 {[%clk 0:02:59]}  Nf6 {[%clk 0:02:58]} 2. c4 {[%clk 0:02:59]}  c5 {[%clk 0:02:58]} 3. d5 {[%clk 0:02:59]}  e6 {[%clk 0:02:59]} 4. Nc3 {[%clk 0:02:59]}  exd5 {[%clk 0:02:59]} 5. cxd5 {[%clk 0:03:00]}  d6 {[%clk 0:03:00]} 6. e4 {[%clk 0:02:59]}  g6 {[%clk 0:03:00]} 7. Bg5 {[%clk 0:02:58]}  Bg7 {[%clk 0:02:59]} 8. h3 {[%clk 0:02:58]}  a6 {[%clk 0:02:59]} 9. a4 {[%clk 0:02:57]}  O-O {[%clk 0:02:57]} 10. Bd3 {[%clk 0:02:56]}  Re8 {[%clk 0:02:56]} 11. Nge2 {[%clk 0:02:55]}  Nbd7 {[%clk 0:02:55]} 12. O-O {[%clk 0:02:55]}  Ne5 {[%clk 0:02:55]} 13. f4 {[%clk 0:02:54]}  Nxd3 {[%clk 0:02:54]} 14. Qxd3 {[%clk 0:02:55]}  Qb6 {[%clk 0:02:49]} 15. Qc2 {[%clk 0:02:54]}  h6 {[%clk 0:02:13]} 16. Bh4 {[%clk 0:02:50]}  Qc7 {[%clk 0:01:58]} 17. Rad1 {[%clk 0:02:33]}  Bd7 {[%clk 0:01:54]} 18. e5 {[%clk 0:02:32]}  dxe5 {[%clk 0:01:51]} 19. d6 {[%clk 0:02:33]}  Qc6 {[%clk 0:01:24]} 20. fxe5 {[%clk 0:02:32]}  Nh7 {[%clk 0:01:06]} 21. Nd5 {[%clk 0:02:17]}  g5 {[%clk 0:00:44]} 22. Rxf7 {[%clk 0:01:43]}  Kxf7 {[%clk 0:00:38]} 23. Qxh7 {[%clk 0:01:42]}  Rxe5 {[%clk 0:00:30]} 24. Rf1+ {[%clk 0:01:39]}  Bf5 {[%clk 0:00:30]} 25. Rxf5+ {[%clk 0:01:39]}  Rxf5 {[%clk 0:00:30]} 26. Qxf5+ {[%clk 0:01:40]}  Kg8 {[%clk 0:00:29]} 27. Ne7+ {[%clk 0:01:39]} 1-0


[Site "https://www.chess.com"]

[Event "Titled Tuesday Blitz March 07 Late 2023"]
[White "Carlsen, Magnus"]
[Black "Svane, Frederik"]
[WhiteFideId "1503014"]
[BlackFideId "12923044"]
[WhiteElo "2852"]
[BlackElo "2502"]
[Result "1-0"]
[Round "04"]
[TimeControl "180+2"]
[Date "2023.03.07"]
[WhiteClock "0:01:22"]
[BlackClock "0:00:18"]

1. c4 {[%clk 0:03:00]}  e5 {[%clk 0:02:57]} 2. g3 {[%clk 0:02:56]}  Nf6 {[%clk 0:02:57]} 3. Bg2 {[%clk 0:02:56]}  Bc5 {[%clk 0:02:58]} 4. d3 {[%clk 0:02:55]}  O-O {[%clk 0:02:56]} 5. Nf3 {[%clk 0:02:54]}  d6 {[%clk 0:02:53]} 6. O-O {[%clk 0:02:53]}  Nc6 {[%clk 0:02:45]} 7. Nc3 {[%clk 0:02:53]}  Nd4 {[%clk 0:02:44]} 8. Nd2 {[%clk 0:02:49]}  a6 {[%clk 0:02:41]} 9. e3 {[%clk 0:02:44]}  Nf5 {[%clk 0:02:35]} 10. Qe2 {[%clk 0:02:34]}  c6 {[%clk 0:02:32]} 11. Nde4 {[%clk 0:02:33]}  Nxe4 {[%clk 0:02:30]} 12. dxe4 {[%clk 0:02:33]}  Ne7 {[%clk 0:02:23]} 13. Rd1 {[%clk 0:02:32]}  Qc7 {[%clk 0:02:13]} 14. Na4 {[%clk 0:02:19]}  Ba7 {[%clk 0:02:09]} 15. b3 {[%clk 0:02:20]}  b5 {[%clk 0:02:07]} 16. Nb2 {[%clk 0:02:19]}  Be6 {[%clk 0:02:06]} 17. Bd2 {[%clk 0:02:19]}  Rfd8 {[%clk 0:02:05]} 18. Rac1 {[%clk 0:02:19]}  Qb7 {[%clk 0:01:47]} 19. Ba5 {[%clk 0:02:13]}  Bb6 {[%clk 0:01:44]} 20. Qd2 {[%clk 0:02:12]}  Bxa5 {[%clk 0:01:40]} 21. Qxa5 {[%clk 0:02:12]}  c5 {[%clk 0:01:28]} 22. Qc3 {[%clk 0:02:04]}  b4 {[%clk 0:01:09]} 23. Qc2 {[%clk 0:02:04]}  a5 {[%clk 0:01:09]} 24. Rd2 {[%clk 0:02:04]}  Qc7 {[%clk 0:01:01]} 25. Rcd1 {[%clk 0:02:02]}  Nc8 {[%clk 0:01:01]} 26. h4 {[%clk 0:01:56]}  Nb6 {[%clk 0:00:59]} 27. Kh2 {[%clk 0:01:55]}  Rd7 {[%clk 0:00:57]} 28. Bh3 {[%clk 0:01:55]}  Qc6 {[%clk 0:00:56]} 29. Bxe6 {[%clk 0:01:50]}  fxe6 {[%clk 0:00:56]} 30. f4 {[%clk 0:01:50]}  exf4 {[%clk 0:00:55]} 31. exf4 {[%clk 0:01:47]}  a4 {[%clk 0:00:50]} 32. Re2 {[%clk 0:01:45]}  axb3 {[%clk 0:00:49]} 33. axb3 {[%clk 0:01:45]}  Ra2 {[%clk 0:00:40]} 34. Qb1 {[%clk 0:01:45]}  Ra3 {[%clk 0:00:40]} 35. Nd3 {[%clk 0:01:45]}  Rda7 {[%clk 0:00:36]} 36. Nf2 {[%clk 0:01:42]}  h6 {[%clk 0:00:32]} 37. Red2 {[%clk 0:01:42]}  Nc8 {[%clk 0:00:25]} 38. e5 {[%clk 0:01:33]}  dxe5 {[%clk 0:00:18]} 39. Ng4 {[%clk 0:01:22]} 1-0


[Site "https://www.chess.com"]

[Event "Titled Tuesday Blitz March 07 Late 2023"]
[White "Zhigalko, Sergei"]
[Black "Bortnyk, Olexandr"]
[WhiteFideId "13502956"]
[BlackFideId "14120828"]
[WhiteElo "2626"]
[BlackElo "2734"]
[Result "1/2-1/2"]
[Round "04"]
[TimeControl "180+2"]
[Date "2023.03.07"]
[WhiteClock "0:00:08"]
[BlackClock "0:00:24"]

1. e4 {[%clk 0:03:00]}  Nf6 {[%clk 0:02:59]} 2. e5 {[%clk 0:03:01]}  Nd5 {[%clk 0:02:59]} 3. d4 {[%clk 0:03:01]}  d6 {[%clk 0:02:59]} 4. Nf3 {[%clk 0:03:02]}  dxe5 {[%clk 0:02:59]} 5. Nxe5 {[%clk 0:03:03]}  c6 {[%clk 0:03:00]} 6. Be2 {[%clk 0:03:03]}  Bf5 {[%clk 0:03:00]} 7. O-O {[%clk 0:03:03]}  Nd7 {[%clk 0:03:00]} 8. Nf3 {[%clk 0:03:03]}  e6 {[%clk 0:03:00]} 9. c4 {[%clk 0:03:03]}  N5f6 {[%clk 0:03:01]} 10. Bf4 {[%clk 0:03:01]}  Be7 {[%clk 0:03:01]} 11. Nc3 {[%clk 0:03:01]}  O-O {[%clk 0:02:54]} 12. Nh4 {[%clk 0:03:00]}  Bg6 {[%clk 0:02:54]} 13. Nxg6 {[%clk 0:03:00]}  hxg6 {[%clk 0:02:55]} 14. a3 {[%clk 0:02:57]}  Qa5 {[%clk 0:02:39]} 15. Re1 {[%clk 0:02:51]}  Rad8 {[%clk 0:02:25]} 16. Qb3 {[%clk 0:02:42]}  b6 {[%clk 0:02:11]} 17. Rad1 {[%clk 0:02:36]}  e5 {[%clk 0:02:04]} 18. dxe5 {[%clk 0:02:29]}  Nxe5 {[%clk 0:02:05]} 19. Qc2 {[%clk 0:02:21]}  Rxd1 {[%clk 0:01:55]} 20. Bxd1 {[%clk 0:02:17]}  Nfd7 {[%clk 0:01:28]} 21. Bxe5 {[%clk 0:01:45]}  Nxe5 {[%clk 0:01:26]} 22. b4 {[%clk 0:01:46]}  Qxa3 {[%clk 0:01:26]} 23. Rxe5 {[%clk 0:01:46]}  Bxb4 {[%clk 0:00:55]} 24. Nb1 {[%clk 0:00:44]}  Qa1 {[%clk 0:00:53]} 25. Re3 {[%clk 0:00:42]}  a5 {[%clk 0:00:43]} 26. g3 {[%clk 0:00:33]}  Rd8 {[%clk 0:00:43]} 27. Kg2 {[%clk 0:00:31]}  a4 {[%clk 0:00:38]} 28. Bf3 {[%clk 0:00:14]}  a3 {[%clk 0:00:39]} 29. Nxa3 {[%clk 0:00:12]}  Bxa3 {[%clk 0:00:37]} 30. Qa4 {[%clk 0:00:08]}  Bb2 {[%clk 0:00:34]} 31. Qxa1 {[%clk 0:00:09]}  Bxa1 {[%clk 0:00:34]} 32. Bxc6 {[%clk 0:00:09]}  Bd4 {[%clk 0:00:27]} 33. Rd3 {[%clk 0:00:07]}  Kf8 {[%clk 0:00:25]} 34. h4 {[%clk 0:00:07]}  Ke7 {[%clk 0:00:24]} 35. f4 {[%clk 0:00:06]}  f6 {[%clk 0:00:22]} 36. Bb5 {[%clk 0:00:05]}  Bc5 {[%clk 0:00:19]} 37. Rxd8 {[%clk 0:00:05]}  Kxd8 {[%clk 0:00:20]} 38. Kf3 {[%clk 0:00:05]}  g5 {[%clk 0:00:20]} 39. fxg5 {[%clk 0:00:05]}  fxg5 {[%clk 0:00:21]} 40. hxg5 {[%clk 0:00:06]}  Ke7 {[%clk 0:00:22]} 41. g4 {[%clk 0:00:06]}  Ke6 {[%clk 0:00:22]} 42. Ke4 {[%clk 0:00:06]}  Be7 {[%clk 0:00:22]} 43. g6 {[%clk 0:00:06]}  Bc5 {[%clk 0:00:22]} 44. Be8 {[%clk 0:00:06]}  Ke7 {[%clk 0:00:22]} 45. Bf7 {[%clk 0:00:07]}  Kf6 {[%clk 0:00:22]} 46. Kf4 {[%clk 0:00:06]}  Bd6+ {[%clk 0:00:22]} 47. Ke4 {[%clk 0:00:07]}  Bc5 {[%clk 0:00:23]} 48. Kf4 {[%clk 0:00:07]}  Bd6+ {[%clk 0:00:23]} 49. Ke4 {[%clk 0:00:08]}  Bc5 {[%clk 0:00:24]} 1/2-1/2


[Site "https://www.chess.com"]

[Event "Titled Tuesday Blitz March 07 Late 2023"]
[White "Hakobyan, Aram"]
[Black "Yuan, Qingyu"]
[WhiteFideId "13306677"]
[BlackFideId "8609772"]
[WhiteElo "2563"]
[BlackElo "2359"]
[Result "1/2-1/2"]
[Round "04"]
[TimeControl "180+2"]
[Date "2023.03.07"]
[WhiteClock "0:00:07"]
[BlackClock "0:00:08"]

1. d4 {[%clk 0:03:00]}  d5 {[%clk 0:02:59]} 2. Nf3 {[%clk 0:03:01]}  Nf6 {[%clk 0:03:00]} 3. c3 {[%clk 0:03:01]}  c5 {[%clk 0:03:00]} 4. Bf4 {[%clk 0:02:55]}  Nc6 {[%clk 0:02:47]} 5. e3 {[%clk 0:02:54]}  cxd4 {[%clk 0:02:46]} 6. exd4 {[%clk 0:02:49]}  Bf5 {[%clk 0:02:46]} 7. Nbd2 {[%clk 0:02:44]}  e6 {[%clk 0:02:47]} 8. Bb5 {[%clk 0:02:26]}  Bd6 {[%clk 0:02:41]} 9. Bxd6 {[%clk 0:02:25]}  Qxd6 {[%clk 0:02:41]} 10. O-O {[%clk 0:02:26]}  O-O {[%clk 0:02:40]} 11. Re1 {[%clk 0:02:26]}  Qc7 {[%clk 0:02:29]} 12. h3 {[%clk 0:02:19]}  h6 {[%clk 0:02:29]} 13. Nf1 {[%clk 0:02:17]}  Ne4 {[%clk 0:02:24]} 14. Bd3 {[%clk 0:02:15]}  Rab8 {[%clk 0:02:17]} 15. Ne3 {[%clk 0:02:15]}  Bh7 {[%clk 0:02:16]} 16. a4 {[%clk 0:02:09]}  Nf6 {[%clk 0:01:51]} 17. Bxh7+ {[%clk 0:02:09]}  Kxh7 {[%clk 0:01:52]} 18. Ng4 {[%clk 0:02:07]}  Ne4 {[%clk 0:01:49]} 19. Nge5 {[%clk 0:02:06]}  Nxe5 {[%clk 0:01:48]} 20. Nxe5 {[%clk 0:02:07]}  Kg8 {[%clk 0:01:36]} 21. Nd3 {[%clk 0:02:02]}  b6 {[%clk 0:01:28]} 22. Re3 {[%clk 0:01:55]}  a5 {[%clk 0:01:19]} 23. Ne5 {[%clk 0:01:54]}  b5 {[%clk 0:01:15]} 24. axb5 {[%clk 0:01:52]}  Rxb5 {[%clk 0:01:15]} 25. Nd3 {[%clk 0:01:52]}  Rfb8 {[%clk 0:01:14]} 26. Re2 {[%clk 0:01:44]}  Nd6 {[%clk 0:01:12]} 27. Ra2 {[%clk 0:01:21]}  Nc4 {[%clk 0:01:09]} 28. Qc1 {[%clk 0:01:21]}  Qb6 {[%clk 0:01:00]} 29. Nc5 {[%clk 0:01:16]}  Qc6 {[%clk 0:00:52]} 30. b3 {[%clk 0:00:57]}  Nd6 {[%clk 0:00:51]} 31. Qf4 {[%clk 0:00:55]}  Ne4 {[%clk 0:00:37]} 32. Rxa5 {[%clk 0:00:34]}  Nxc5 {[%clk 0:00:30]} 33. dxc5 {[%clk 0:00:32]}  Rxb3 {[%clk 0:00:25]} 34. Ra7 {[%clk 0:00:29]}  R3b7 {[%clk 0:00:18]} 35. Ra5 {[%clk 0:00:28]}  Rb5 {[%clk 0:00:17]} 36. Ra7 {[%clk 0:00:28]}  R5b7 {[%clk 0:00:17]} 37. Ra5 {[%clk 0:00:25]}  Qc7 {[%clk 0:00:16]} 38. Qxc7 {[%clk 0:00:20]}  Rxc7 {[%clk 0:00:16]} 39. c4 {[%clk 0:00:17]}  dxc4 {[%clk 0:00:12]} 40. Rc2 {[%clk 0:00:15]}  Rb4 {[%clk 0:00:13]} 41. Kf1 {[%clk 0:00:16]}  Kh7 {[%clk 0:00:13]} 42. Ke2 {[%clk 0:00:17]}  Kg6 {[%clk 0:00:08]} 43. Kd2 {[%clk 0:00:17]}  Kf5 {[%clk 0:00:06]} 44. Kc3 {[%clk 0:00:17]}  Rb8 {[%clk 0:00:05]} 45. Kxc4 {[%clk 0:00:17]}  Rbc8 {[%clk 0:00:05]} 46. Rd2 {[%clk 0:00:16]}  e5 {[%clk 0:00:05]} 47. Rd5 {[%clk 0:00:16]}  f6 {[%clk 0:00:05]} 48. Ra3 {[%clk 0:00:15]}  h5 {[%clk 0:00:05]} 49. h4 {[%clk 0:00:13]}  Rb8 {[%clk 0:00:04]} 50. Rf3+ {[%clk 0:00:13]}  Ke6 {[%clk 0:00:04]} 51. Rd6+ {[%clk 0:00:13]}  Ke7 {[%clk 0:00:04]} 52. Kd5 {[%clk 0:00:14]}  Rb5 {[%clk 0:00:04]} 53. Rc3 {[%clk 0:00:14]}  Ra5 {[%clk 0:00:04]} 54. Rc4 {[%clk 0:00:14]}  Rb5 {[%clk 0:00:04]} 55. f4 {[%clk 0:00:14]}  exf4 {[%clk 0:00:04]} 56. Re6+ {[%clk 0:00:14]}  Kf7 {[%clk 0:00:04]} 57. Ra6 {[%clk 0:00:14]}  g5 {[%clk 0:00:04]} 58. hxg5 {[%clk 0:00:13]}  fxg5 {[%clk 0:00:05]} 59. Rh6 {[%clk 0:00:11]}  Kg7 {[%clk 0:00:03]} 60. Rxh5 {[%clk 0:00:12]}  Kg6 {[%clk 0:00:03]} 61. Rh8 {[%clk 0:00:13]}  Rd7+ {[%clk 0:00:03]} 62. Kc6 {[%clk 0:00:13]}  Rbb7 {[%clk 0:00:04]} 63. Rc8 {[%clk 0:00:11]}  Kf5 {[%clk 0:00:04]} 64. Rc2 {[%clk 0:00:06]}  Kg4 {[%clk 0:00:05]} 65. Re2 {[%clk 0:00:04]}  Kg3 {[%clk 0:00:05]} 66. Re5 {[%clk 0:00:05]}  g4 {[%clk 0:00:05]} 67. Rg5 {[%clk 0:00:05]}  Rg7 {[%clk 0:00:03]} 68. Rf5 {[%clk 0:00:04]}  Rbf7 {[%clk 0:00:02]} 69. Rxf7 {[%clk 0:00:04]}  Rxf7 {[%clk 0:00:03]} 70. Rg8 {[%clk 0:00:03]}  f3 {[%clk 0:00:02]} 71. gxf3 {[%clk 0:00:04]}  Kxf3 {[%clk 0:00:03]} 72. Kb6 {[%clk 0:00:04]}  g3 {[%clk 0:00:04]} 73. c6 {[%clk 0:00:05]}  g2 {[%clk 0:00:04]} 74. c7 {[%clk 0:00:05]}  Rxc7 {[%clk 0:00:04]} 75. Kxc7 {[%clk 0:00:06]}  Kf2 {[%clk 0:00:05]} 76. Rf8+ {[%clk 0:00:06]}  Kg1 {[%clk 0:00:06]} 77. Re8 {[%clk 0:00:07]}  Kh2 {[%clk 0:00:06]} 78. Rh8+ {[%clk 0:00:07]}  Kg3 {[%clk 0:00:07]} 79. Kd6 {[%clk 0:00:07]}  g1=Q {[%clk 0:00:07]} 80. Rg8+ {[%clk 0:00:08]}  Kf2 {[%clk 0:00:08]} 81. Rxg1 {[%clk 0:00:07]}  Kxg1 {[%clk 0:00:08]} 1/2-1/2


[Site "https://www.chess.com"]

[Event "Titled Tuesday Blitz March 07 Late 2023"]
[White "Real_OceanStorm"]
[Black "Yoo, Christopher Woojin"]
[BlackFideId "30909694"]
[WhiteElo "2789"]
[BlackElo "2519"]
[Result "0-1"]
[Round "04"]
[TimeControl "180+2"]
[Date "2023.03.07"]
[WhiteClock "0:00:03"]
[BlackClock "0:00:05"]

1. e4 {[%clk 0:03:00]}  c6 {[%clk 0:02:26]} 2. d4 {[%clk 0:03:00]}  d5 {[%clk 0:02:27]} 3. e5 {[%clk 0:03:01]}  Bf5 {[%clk 0:02:26]} 4. Be2 {[%clk 0:03:01]}  e6 {[%clk 0:02:21]} 5. Nf3 {[%clk 0:03:00]}  Ne7 {[%clk 0:02:17]} 6. h3 {[%clk 0:03:00]}  Nd7 {[%clk 0:02:15]} 7. O-O {[%clk 0:03:00]}  c5 {[%clk 0:02:06]} 8. dxc5 {[%clk 0:02:47]}  Nc6 {[%clk 0:02:02]} 9. c3 {[%clk 0:02:46]}  Bxc5 {[%clk 0:02:00]} 10. b4 {[%clk 0:02:46]}  Bb6 {[%clk 0:02:01]} 11. Bg5 {[%clk 0:02:44]}  Qb8 {[%clk 0:01:58]} 12. Bf4 {[%clk 0:02:44]}  O-O {[%clk 0:01:45]} 13. Nd4 {[%clk 0:02:34]}  Bxb1 {[%clk 0:01:37]} 14. Rxb1 {[%clk 0:02:33]}  Ncxe5 {[%clk 0:01:21]} 15. a4 {[%clk 0:02:15]}  Qd8 {[%clk 0:01:00]} 16. a5 {[%clk 0:01:59]}  Bc7 {[%clk 0:01:00]} 17. Nb5 {[%clk 0:01:59]}  Bb8 {[%clk 0:01:00]} 18. Be3 {[%clk 0:01:15]}  a6 {[%clk 0:01:00]} 19. Nd4 {[%clk 0:01:15]}  Ba7 {[%clk 0:01:00]} 20. Rc1 {[%clk 0:01:10]}  Nf6 {[%clk 0:00:55]} 21. Qc2 {[%clk 0:01:08]}  Qe7 {[%clk 0:00:53]} 22. Rcd1 {[%clk 0:01:08]}  Rfc8 {[%clk 0:00:51]} 23. Bg5 {[%clk 0:01:05]}  h6 {[%clk 0:00:51]} 24. Bxf6 {[%clk 0:01:05]}  Qxf6 {[%clk 0:00:50]} 25. Qd2 {[%clk 0:01:05]}  Nc4 {[%clk 0:00:48]} 26. Bxc4 {[%clk 0:00:59]}  Rxc4 {[%clk 0:00:49]} 27. Ne2 {[%clk 0:01:00]}  Rac8 {[%clk 0:00:47]} 28. Qd3 {[%clk 0:00:58]}  Qe5 {[%clk 0:00:45]} 29. Kh1 {[%clk 0:00:56]}  Re4 {[%clk 0:00:43]} 30. Rde1 {[%clk 0:00:56]}  Bb8 {[%clk 0:00:41]} 31. g3 {[%clk 0:00:55]}  h5 {[%clk 0:00:37]} 32. b5 {[%clk 0:00:40]}  axb5 {[%clk 0:00:31]} 33. Qxb5 {[%clk 0:00:40]}  Qc7 {[%clk 0:00:22]} 34. h4 {[%clk 0:00:20]}  Rxh4+ {[%clk 0:00:21]} 35. Kg2 {[%clk 0:00:20]}  Rc4 {[%clk 0:00:20]} 36. Qb1 {[%clk 0:00:18]}  h4 {[%clk 0:00:17]} 37. Rh1 {[%clk 0:00:18]}  g6 {[%clk 0:00:17]} 38. gxh4 {[%clk 0:00:14]}  Rg4+ {[%clk 0:00:15]} 39. Kf1 {[%clk 0:00:14]}  Qc4 {[%clk 0:00:15]} 40. h5 {[%clk 0:00:05]}  Rh4 {[%clk 0:00:11]} 41. Rxh4 {[%clk 0:00:05]}  Qxh4 {[%clk 0:00:11]} 42. Ng1 {[%clk 0:00:06]}  Qc4+ {[%clk 0:00:07]} 43. Ne2 {[%clk 0:00:06]}  gxh5 {[%clk 0:00:07]} 44. Qxb7 {[%clk 0:00:06]}  Be5 {[%clk 0:00:04]} 45. a6 {[%clk 0:00:04]}  Rb8 {[%clk 0:00:05]} 46. Qe7 {[%clk 0:00:03]}  Qg4 {[%clk 0:00:04]} 47. a7 {[%clk 0:00:03]}  Qh3+ {[%clk 0:00:04]} 48. Kg1 {[%clk 0:00:03]}  Bh2+ {[%clk 0:00:05]} 0-1


[Site "https://www.chess.com"]

[Event "Titled Tuesday Blitz March 07 Late 2023"]
[White "Fier, Alexandr"]
[Black "Durarbayli, Vasif"]
[WhiteFideId "2107139"]
[BlackFideId "13402935"]
[WhiteElo "2610"]
[BlackElo "2543"]
[Result "1/2-1/2"]
[Round "04"]
[TimeControl "180+2"]
[Date "2023.03.07"]
[WhiteClock "0:00:14"]
[BlackClock "0:00:09"]

1. c4 {[%clk 0:03:00]}  c5 {[%clk 0:02:58]} 2. Nf3 {[%clk 0:02:59]}  Nf6 {[%clk 0:02:58]} 3. d4 {[%clk 0:02:59]}  cxd4 {[%clk 0:02:58]} 4. Nxd4 {[%clk 0:03:00]}  b6 {[%clk 0:02:58]} 5. Nc3 {[%clk 0:02:59]}  Bb7 {[%clk 0:02:58]} 6. f3 {[%clk 0:02:59]}  e6 {[%clk 0:02:59]} 7. e4 {[%clk 0:03:00]}  d6 {[%clk 0:02:59]} 8. Be2 {[%clk 0:03:00]}  a6 {[%clk 0:03:00]} 9. Be3 {[%clk 0:03:00]}  Qc7 {[%clk 0:03:00]} 10. O-O {[%clk 0:03:00]}  Be7 {[%clk 0:03:01]} 11. Qd2 {[%clk 0:03:00]}  O-O {[%clk 0:03:01]} 12. a3 {[%clk 0:03:00]}  Nbd7 {[%clk 0:03:01]} 13. b4 {[%clk 0:03:00]}  Rac8 {[%clk 0:03:01]} 14. Rac1 {[%clk 0:03:00]}  Qb8 {[%clk 0:03:01]} 15. Rfd1 {[%clk 0:03:01]}  Rfe8 {[%clk 0:03:01]} 16. Bf1 {[%clk 0:03:01]}  Bd8 {[%clk 0:03:00]} 17. Nb3 {[%clk 0:02:32]}  Bc7 {[%clk 0:02:58]} 18. Kh1 {[%clk 0:02:31]}  d5 {[%clk 0:02:21]} 19. cxd5 {[%clk 0:02:26]}  exd5 {[%clk 0:02:21]} 20. Nxd5 {[%clk 0:02:23]}  Nxd5 {[%clk 0:02:13]} 21. exd5 {[%clk 0:02:23]}  Bxh2 {[%clk 0:02:12]} 22. Rxc8 {[%clk 0:02:20]}  Bxc8 {[%clk 0:01:49]} 23. Nd4 {[%clk 0:02:12]}  Qe5 {[%clk 0:01:16]} 24. Nc6 {[%clk 0:02:01]}  Qxe3 {[%clk 0:01:15]} 25. Qxe3 {[%clk 0:02:00]}  Rxe3 {[%clk 0:01:16]} 26. Kxh2 {[%clk 0:02:01]}  Kf8 {[%clk 0:01:16]} 27. a4 {[%clk 0:01:53]}  Nf6 {[%clk 0:01:01]} 28. a5 {[%clk 0:01:52]}  bxa5 {[%clk 0:00:51]} 29. bxa5 {[%clk 0:01:48]}  Rc3 {[%clk 0:00:51]} 30. Nb8 {[%clk 0:01:43]}  Rc5 {[%clk 0:00:44]} 31. d6 {[%clk 0:01:44]}  Nd7 {[%clk 0:00:32]} 32. Nxd7+ {[%clk 0:01:10]}  Bxd7 {[%clk 0:00:33]} 33. Rb1 {[%clk 0:01:09]}  g6 {[%clk 0:00:11]} 34. Rb7 {[%clk 0:01:06]}  Be6 {[%clk 0:00:07]} 35. Bxa6 {[%clk 0:01:00]}  Rxa5 {[%clk 0:00:04]} 36. Bb5 {[%clk 0:01:01]}  Ra8 {[%clk 0:00:04]} 37. Kg3 {[%clk 0:00:56]}  Rd8 {[%clk 0:00:03]} 38. Rb6 {[%clk 0:00:55]}  g5 {[%clk 0:00:04]} 39. f4 {[%clk 0:00:54]}  h6 {[%clk 0:00:04]} 40. Kf3 {[%clk 0:00:48]}  Kg7 {[%clk 0:00:04]} 41. Ke4 {[%clk 0:00:47]}  Kf6 {[%clk 0:00:04]} 42. g3 {[%clk 0:00:44]}  h5 {[%clk 0:00:02]} 43. fxg5+ {[%clk 0:00:28]}  Kxg5 {[%clk 0:00:03]} 44. Be2 {[%clk 0:00:29]}  Kf6 {[%clk 0:00:01]} 45. Kf4 {[%clk 0:00:28]}  Ra8 {[%clk 0:00:02]} 46. Bxh5 {[%clk 0:00:28]}  Ra4+ {[%clk 0:00:02]} 47. Ke3 {[%clk 0:00:28]}  Ke5 {[%clk 0:00:03]} 48. Be2 {[%clk 0:00:23]}  Rd4 {[%clk 0:00:03]} 49. Rb5+ {[%clk 0:00:21]}  Rd5 {[%clk 0:00:03]} 50. Rb7 {[%clk 0:00:10]}  Rxd6 {[%clk 0:00:03]} 51. Bh5 {[%clk 0:00:11]}  Kf6 {[%clk 0:00:04]} 52. Bf3 {[%clk 0:00:11]}  Ra6 {[%clk 0:00:04]} 53. Rb4 {[%clk 0:00:11]}  Ra3+ {[%clk 0:00:05]} 54. Kf2 {[%clk 0:00:11]}  Ra5 {[%clk 0:00:06]} 55. Rf4+ {[%clk 0:00:11]}  Rf5 {[%clk 0:00:06]} 56. Ke3 {[%clk 0:00:11]}  Ke5 {[%clk 0:00:06]} 57. Rxf5+ {[%clk 0:00:12]}  Kxf5 {[%clk 0:00:06]} 58. Kf2 {[%clk 0:00:12]}  Kg5 {[%clk 0:00:06]} 59. Ke3 {[%clk 0:00:12]}  Bg4 {[%clk 0:00:06]} 60. Be4 {[%clk 0:00:12]}  f5 {[%clk 0:00:06]} 61. Bg2 {[%clk 0:00:12]}  Bh5 {[%clk 0:00:07]} 62. Kf2 {[%clk 0:00:13]}  Bg4 {[%clk 0:00:07]} 63. Ke3 {[%clk 0:00:13]}  Bh5 {[%clk 0:00:08]} 64. Kf2 {[%clk 0:00:13]}  Bg4 {[%clk 0:00:09]} 65. Ke3 {[%clk 0:00:14]} 1/2-1/2


[Site "https://www.chess.com"]